fUSD/lending_fUSD_20250623
["ID","MTS","AMOUNT","RATE_DAILY","PERIOD"]
[367221904,1750705836298,-811.59,0.00022879,2]
[367221905,1750705836307,-591.63,0.00022879,2]
[367221906,1750705836316,-1037.59,0.00022879,2]
[367221907,1750705836325,-490.0,0.00022879,2]
[367221908,1750705836338,-3062.65,0.00022879,2]
[367221909,1750705836347,-1158.55,0.00022879,2]
[367221910,1750705836355,-490.0,0.00022879,2]
[367221911,1750705836369,-491.93741575,0.00022879,2]
[367221912,1750705836378,-688.6,0.00022879,2]
[367221913,1750705836388,-490.0,0.00022879,2]
[367221914,1750705836397,-370.03284264,0.00022879,2]
[367221915,1750705836407,-490.0,0.00022879,2]
[367221916,1750705836416,-490.0,0.00022879,2]
[367221917,1750705836425,-490.0,0.00022879,2]
[367221918,1750705836435,-817.01,0.00022879,2]
[367221919,1750705836444,-490.0,0.00022879,2]
[367221920,1750705836453,-490.0,0.00022879,2]
[367221921,1750705836462,-237.84769148,0.00022879,2]
[367221922,1750705836472,-1375.88,0.00022879,2]
[367221923,1750705836482,-517.321938,0.00022879,2]
[367221924,1750705836491,-791.98,0.00022879,2]
[367221925,1750705836502,-937.37,0.00022879,2]
[367221926,1750705836511,-610.43,0.00022879,2]
[367221927,1750705836521,-1832.16,0.00022879,2]
[367221928,1750705836530,-490.0,0.00022879,2]
[367221929,1750705836540,-493.00855477,0.00022879,2]
[367221930,1750705836550,-586.08,0.00022879,2]
[367221931,1750705836559,-526.8,0.00022879,2]
[367221932,1750705836568,-880.25,0.00022879,2]
[367221933,1750705836578,-891.34,0.00022879,2]
[367221934,1750705836588,-490.0,0.00022879,2]
[367221935,1750705836597,-664.09,0.00022879,2]
[367221936,1750705836608,-490.0,0.00022879,2]
[367221937,1750705836617,-526.22,0.00022879,2]
[367221938,1750705836627,-604.01,0.00022879,2]
[367221939,1750705836636,-1022.33,0.00022879,2]
[367221940,1750705836647,-6826.59,0.00022879,2]
[367221941,1750705836656,-490.0,0.00022879,2]
[367221942,1750705836665,-490.0,0.00022879,2]
[367221943,1750705836675,-480.0,0.00022879,2]
[367221944,1750705836685,-843.57,0.00022879,2]
[367221945,1750705836695,-705.63,0.00022879,2]
[367221946,1750705836705,-490.00039414,0.00022879,2]
[367221947,1750705836715,-490.0,0.00022879,2]
[367221948,1750705836724,-712.18,0.00022879,2]
[367221949,1750705836734,-490.0,0.00022879,2]
[367221950,1750705836743,-490.0,0.00022879,2]
[367221951,1750705836752,-490.0,0.00022879,2]
[367221952,1750705836762,-1058.49,0.00022879,2]
[367221953,1750705836771,-792.65,0.00022879,2]
[367221954,1750705836781,-420.0,0.00022879,2]
[367221955,1750705836790,-490.0,0.00022879,2]
[367221956,1750705836799,-708.48,0.00022879,2]
[367221957,1750705836808,-490.0,0.00022879,2]
[367221958,1750705836818,-837.61,0.00022879,2]
[367221959,1750705836827,-490.0,0.00022879,2]
[367221960,1750705836836,-490.0,0.00022879,2]
[367221961,1750705836846,-561.01435331,0.00022879,2]
[367221962,1750705836856,-490.0,0.00022879,2]
[367221963,1750705836865,-1806.68,0.00022879,2]
[367221964,1750705836875,-490.0,0.00022879,2]
[367221965,1750705836886,-490.0,0.00022879,2]
[367221966,1750705836895,-2851.39,0.00022879,2]
[367221967,1750705836906,-1036.82,0.00022879,2]
[367221968,1750705836916,-500.0,0.00022879,2]
[367221969,1750705836926,-1956.65,0.00022879,2]
[367221970,1750705836935,-490.0,0.00022879,2]
[367221971,1750705836947,-490.0,0.00022879,2]
[367221972,1750705836957,-1079.06,0.00022879,2]
[367221973,1750705836966,-1082.04,0.00022879,2]
[367221974,1750705836976,-836.32,0.00022879,2]
[367221975,1750705836985,-490.0,0.00022879,2]
[367221976,1750705836995,-1002.21,0.00022879,2]
[367221977,1750705837004,-511.24282641,0.00022879,2]
[367221978,1750705837013,-490.0,0.00022879,2]
[367221979,1750705837023,-474.26357857,0.00022879,2]
[367221980,1750705837033,-762.45,0.00022879,2]
[367221981,1750705837043,-490.0,0.00022879,2]
[367221982,1750705837053,-964.34,0.00022879,2]
[367221983,1750705837062,-782.44,0.00022879,2]
[367221984,1750705837071,-490.0,0.00022879,2]
[367221985,1750705837080,-572.33,0.00022879,2]
[367221986,1750705837090,-259.27563019,0.00022879,2]
[367221987,1750705837100,-490.0,0.00022879,2]
[367221988,1750705837110,-490.0,0.00022879,2]
[367221989,1750705837120,-490.0,0.00022879,2]
[367221990,1750705837129,-962.69,0.00022879,2]
[367221991,1750705837139,-623.02,0.00022879,2]
[367221992,1750705837148,-490.0,0.00022879,2]
[367221993,1750705837158,-490.0,0.00022879,2]
[367221994,1750705837167,-490.0,0.00022879,2]
[367221995,1750705837177,-490.0,0.00022879,2]
[367221996,1750705837186,-490.0,0.00022879,2]
[367221997,1750705837195,-1378.9,0.00022879,2]
[367221998,1750705837205,-490.0,0.00022879,2]
[367221999,1750705837215,-490.0,0.00022879,2]
[367222000,1750705837224,-1184.02,0.00022879,2]
[367222001,1750705837235,-490.0,0.00022879,2]
[367222002,1750705837245,-490.0,0.0002288,2]
[367222003,1750705837255,-643.14,0.0002288,2]
[367222004,1750705837264,-514.81,0.0002288,2]
[367222005,1750705837274,-490.0,0.0002288,2]
[367222006,1750705837285,-286.30587761,0.0002288,2]
[367222007,1750705837294,-490.0,0.0002288,2]
[367222008,1750705837304,-490.0,0.0002288,2]
[367222009,1750705837314,-490.0,0.0002288,2]
[367222010,1750705837323,-490.0,0.0002288,2]
[367222011,1750705837334,-490.0,0.0002288,2]
[367222012,1750705837344,-490.0,0.0002288,2]
[367222013,1750705837354,-490.0,0.0002288,2]
[367222014,1750705837367,-490.0,0.0002288,2]
[367222015,1750705837377,-551.1,0.0002288,2]
[367222016,1750705837386,-490.0,0.0002288,2]
[367222017,1750705837396,-490.0,0.0002288,2]
[367222018,1750705837407,-588.0,0.0002288,2]
[367222019,1750705837417,-490.0,0.0002288,2]
[367222020,1750705837427,-490.0,0.0002288,2]
[367222021,1750705837436,-490.0,0.0002288,2]
[367222022,1750705837449,-490.0,0.0002288,2]
[367222023,1750705837459,-554.63,0.0002288,2]
[367222024,1750705837469,-490.0,0.0002288,2]
[367222025,1750705837479,-490.0,0.0002288,2]
[367222026,1750705837489,-490.0,0.0002288,2]
[367222027,1750705837499,-490.0,0.0002288,2]
[367222028,1750705837508,-490.0,0.0002288,2]
[367222029,1750705837518,-490.0,0.0002288,2]
[367222030,1750705837528,-490.0,0.0002288,2]
[367222031,1750705837537,-490.0,0.0002288,2]
[367222032,1750705837547,-490.0,0.0002288,2]
[367222033,1750705837557,-794.96,0.0002288,2]
[367222034,1750705837567,-606.89,0.0002288,2]
[367222035,1750705837576,-490.0,0.0002288,2]
[367222036,1750705837588,-490.0,0.0002288,2]
[367222037,1750705837600,-462.04864114,0.0002288,2]
[367222038,1750705837610,-491.13037814,0.0002288,2]
[367222039,1750705837623,-490.0,0.0002288,2]
[367222040,1750705837637,-490.0,0.0002288,2]
[367222041,1750705837650,-822.97,0.0002288,2]
[367222042,1750705837659,-490.0,0.0002288,2]
[367222043,1750705837668,-490.0,0.0002288,2]
[367222044,1750705837677,-490.0,0.0002288,2]
[367222045,1750705837686,-833.34,0.0002288,2]
[367222046,1750705837695,-490.0,0.0002288,2]
[367222047,1750705837705,-490.0,0.0002288,2]
[367222048,1750705837714,-696.07,0.0002288,2]
[367222049,1750705837794,-490.0,0.0002288,2]
[367222050,1750705837805,-555.82,0.0002288,2]
[367222051,1750705837815,-490.0,0.0002288,2]
[367222052,1750705837825,-490.0,0.0002288,2]
[367222053,1750705837835,-490.0,0.0002288,2]
[367222054,1750705837845,-490.0,0.0002288,2]
[367222055,1750705837855,-371.71832694,0.0002288,2]
[367222056,1750705837864,-499.35,0.0002288,2]
[367222057,1750705837873,-490.0,0.0002288,2]
[367222058,1750705837882,-490.0,0.0002288,2]
[367222059,1750705837891,-571.61,0.0002288,2]
[367222060,1750705837901,-490.0,0.0002288,2]
[367222061,1750705837911,-490.0,0.0002288,2]
[367222062,1750705837920,-604.37,0.0002288,2]
[367222064,1750705837929,-568.7,0.0002288,2]
[367222066,1750705837939,-490.0,0.0002288,2]
[367222067,1750705837947,-628.22,0.0002288,2]
[367222069,1750705837957,-288.81051729,0.0002288,2]
[367222071,1750705837966,-490.0,0.0002288,2]
[367222073,1750705837976,-490.0,0.0002288,2]
[367222075,1750705837984,-490.0,0.0002288,2]
[367222077,1750705837994,-490.0,0.0002288,2]
[367222080,1750705838003,-490.0,0.0002288,2]
[367222082,1750705838012,-490.0,0.0002288,2]
[367222084,1750705838021,-490.0,0.0002288,2]
[367222086,1750705838031,-490.0,0.0002288,2]
[367222087,1750705838041,-490.0,0.0002288,2]
[367222088,1750705838052,-490.0,0.0002288,2]
[367222089,1750705838062,-490.0,0.0002288,2]
[367222090,1750705838071,-490.0,0.0002288,2]
[367222091,1750705838081,-490.0,0.0002288,2]
[367222092,1750705838091,-960.49,0.0002288,2]
[367222093,1750705838101,-1017.36,0.0002288,2]
[367222094,1750705838110,-490.0,0.0002288,2]
[367222095,1750705838119,-699.64,0.0002288,2]
[367222096,1750705838129,-972.51,0.0002288,2]
[367222097,1750705838138,-500.0,0.0002288,2]
[367222098,1750705838147,-500.0,0.0002288,2]
[367222099,1750705838157,-586.08,0.0002288,2]
[367222100,1750705838166,-690.52,0.0002288,2]
[367222101,1750705838175,-490.0,0.0002288,2]
[367222102,1750705838184,-1234.08,0.0002288,2]
[367222103,1750705838193,-496.91063826,0.0002288,2]
[367222104,1750705838202,-490.0,0.0002288,2]
[367222105,1750705838212,-1231.09,0.0002288,2]
[367222106,1750705838221,-620.40620228,0.0002288,2]
[367222107,1750705838230,-490.0,0.0002288,2]
[367222108,1750705838239,-490.0,0.0002288,2]
[367222109,1750705838248,-1272.74,0.0002288,2]
[367222110,1750705838258,-490.0,0.0002288,2]
[367222111,1750705838266,-490.0,0.0002288,2]
[367222112,1750705838275,-1161.83,0.0002288,2]
[367222113,1750705838284,-490.0,0.0002288,2]
[367222114,1750705838293,-490.0,0.0002288,2]
[367222115,1750705838302,-631.26,0.0002288,2]
[367222116,1750705838311,-490.0,0.0002288,2]
[367222117,1750705838320,-490.0,0.0002288,2]
[367222118,1750705838329,-694.94,0.0002288,2]
[367222119,1750705838339,-1749.96,0.0002288,2]
[367222120,1750705838349,-490.0,0.0002288,2]
[367222121,1750705838358,-490.0,0.0002288,2]
[367222122,1750705838372,-492.83231045,0.0002288,2]
[367222123,1750705838383,-1336.53,0.0002288,2]
[367222124,1750705838393,-490.0,0.0002288,2]
[367222125,1750705838405,-490.0,0.0002288,2]
[367222126,1750705838416,-490.0,0.0002288,2]
[367222127,1750705838425,-490.0,0.0002288,2]
[367222128,1750705838435,-683.91,0.0002288,2]
[367222130,1750705838446,-490.0,0.0002288,2]
[367222132,1750705838455,-520.59,0.0002288,2]
[367222134,1750705838465,-490.0,0.0002288,2]
[367222136,1750705838475,-526.32,0.0002288,2]
[367222138,1750705838484,-561.37,0.0002288,2]
[367222139,1750705838494,-300.0,0.0002288,2]
[367222140,1750705838504,-1132.88,0.0002288,2]
[367222141,1750705838515,-835.54,0.0002288,2]
[367222142,1750705838525,-490.0,0.0002288,2]
[367222143,1750705838534,-874.51,0.0002288,2]
[367222144,1750705838544,-1145.15,0.0002288,2]
[367222145,1750705838554,-1412.23,0.0002288,2]
[367222146,1750705838564,-490.0,0.0002288,2]
[367222147,1750705838573,-305.83465636,0.0002288,2]
[367222148,1750705838585,-741.01,0.0002288,2]
[367222149,1750705838595,-500.0,0.0002288,2]
[367222150,1750705838604,-500.0,0.0002288,2]
[367222151,1750705838614,-490.0,0.0002288,2]
[367222152,1750705838623,-490.0,0.0002288,2]
[367222153,1750705838632,-490.0,0.0002288,2]
[367222154,1750705838642,-497.68664128,0.0002288,2]
[367222155,1750705838653,-540.62,0.0002288,2]
[367222156,1750705838663,-490.0,0.0002288,2]
[367222157,1750705838672,-490.0,0.0002288,2]
[367222158,1750705838682,-970.99,0.0002288,2]
[367222159,1750705838693,-485.94126434,0.0002288,2]
[367222160,1750705838704,-490.0,0.0002288,2]
[367222161,1750705838715,-722.69,0.0002288,2]
[367222162,1750705838727,-490.0,0.0002288,2]
[367222163,1750705838737,-490.0,0.0002288,2]
[367222165,1750705838751,-490.0,0.0002288,2]
[367222167,1750705838761,-490.0,0.0002288,2]
[367222169,1750705838770,-490.0,0.0002288,2]
[367222171,1750705838779,-490.0,0.0002288,2]
[367222173,1750705838788,-1198.94,0.0002288,2]
[367222175,1750705838798,-490.0,0.0002288,2]
[367222177,1750705838807,-490.0,0.0002288,2]
[367222178,1750705838817,-230.41728735,0.0002288,2]
[367222180,1750705838826,-490.0,0.0002288,2]
[367222182,1750705838838,-490.0,0.0002288,2]
[367222184,1750705838847,-750.65,0.0002288,2]
[367222186,1750705838857,-490.0,0.0002288,2]
[367222188,1750705838866,-729.14,0.0002288,2]
[367222190,1750705838876,-490.0,0.0002288,2]
[367222192,1750705838885,-490.0,0.0002288,2]
[367222194,1750705838894,-490.0,0.0002288,2]
[367222196,1750705838903,-851.58,0.0002288,2]
[367222198,1750705838917,-490.0,0.0002288,2]
[367222200,1750705838928,-500.0,0.0002288,2]
[367222202,1750705838937,-490.0,0.0002288,2]
[367222204,1750705838947,-490.0,0.0002288,2]
[367222206,1750705838957,-635.94,0.0002288,2]
[367222208,1750705838966,-490.0,0.0002288,2]
[367222210,1750705838976,-536.5,0.0002288,2]
[367222212,1750705838985,-490.0,0.0002288,2]
[367222214,1750705838994,-596.2,0.0002288,2]
[367222216,1750705839003,-510.91823709,0.0002288,2]
[367222218,1750705839013,-490.0,0.0002288,2]
[367222220,1750705839021,-670.88,0.0002288,2]
[367222222,1750705839031,-490.0,0.0002288,2]
[367222224,1750705839040,-490.0,0.0002288,2]
[367222226,1750705839049,-490.0,0.0002288,2]
[367222228,1750705839059,-945.95,0.0002288,2]
[367222230,1750705839068,-1013.85,0.0002288,2]
[367222232,1750705839077,-1010.31,0.0002288,2]
[367222234,1750705839087,-492.76664575,0.0002288,2]
[367222236,1750705839097,-678.32,0.0002288,2]
[367222238,1750705839107,-533.63,0.0002288,2]
[367222240,1750705839117,-515.34,0.0002288,2]
[367222242,1750705839126,-490.0,0.0002288,2]
[367222244,1750705839135,-490.0,0.0002288,2]
[367222245,1750705839145,-335.47985413,0.0002288,2]
[367222247,1750705839155,-675.29,0.0002288,2]
[367222249,1750705839164,-490.0,0.0002288,2]
[367222251,1750705839175,-862.56,0.0002288,2]
[367222253,1750705839184,-1349.23,0.0002288,2]
[367222255,1750705839193,-591.66,0.0002288,2]
[367222257,1750705839203,-603.39619157,0.0002288,2]
[367222259,1750705839212,-932.39,0.0002288,2]
[367222261,1750705839222,-927.14,0.0002288,2]
[367222263,1750705839231,-490.0,0.0002288,2]
[367222265,1750705839240,-490.0,0.0002288,2]
[367222267,1750705839249,-561.53,0.0002288,2]
[367222269,1750705839258,-490.0,0.0002288,2]
[367222271,1750705839267,-490.0,0.0002288,2]
[367222273,1750705839277,-490.0,0.0002288,2]
[367222275,1750705839286,-490.0,0.0002288,2]
[367222277,1750705839295,-490.0,0.0002288,2]
[367222279,1750705839305,-490.0,0.0002288,2]
[367222281,1750705839315,-364.93553375,0.0002288,2]
[367222337,1750705839853,-125.06446625,0.0002288,2]
[367222339,1750705839863,-885.83,0.0002288,2]
[367222341,1750705839872,-490.0,0.0002288,2]
[367222343,1750705839881,-1665.03,0.0002288,2]
[367222345,1750705839891,-490.0,0.0002288,2]
[367222347,1750705839900,-842.52,0.0002288,2]
[367222349,1750705839910,-490.0,0.0002288,2]
[367222351,1750705839919,-1015.67,0.0002288,2]
[367222353,1750705839928,-490.0,0.0002288,2]
[367222355,1750705839938,-500.0,0.0002288,2]
[367222357,1750705839947,-490.0,0.0002288,2]
[367222359,1750705839956,-500.0,0.0002288,2]
[367222361,1750705839965,-2213.78,0.0002288,2]
[367222363,1750705839974,-490.0,0.0002288,2]
[367222365,1750705839983,-660.86,0.0002288,2]
[367222367,1750705839993,-934.11,0.0002288,2]
[367222369,1750705840002,-921.51640404,0.0002288,2]
[367222551,1750705841755,-490.0,0.00022878,2]
[367222553,1750705841764,-54.36133986,0.00022879,2]
[367222568,1750705841895,-721.83866014,0.00022879,2]
[367222570,1750705841904,-490.0,0.00022879,2]
[367222572,1750705841914,-422.99359596,0.0002288,2]
[367222574,1750705841923,-490.0,0.0002288,2]
[367222576,1750705841932,-490.0,0.0002288,2]
[367222578,1750705841941,-1695.44,0.0002288,2]
[367222580,1750705841951,-490.0,0.0002288,2]
[367222582,1750705841960,-899.73014604,0.0002288,2]
[367222629,1750705842405,-490.0,0.00022879,2]
[367222631,1750705842415,-92.63985396,0.0002288,2]
[367222633,1750705842425,-490.0,0.0002288,2]
[367222635,1750705842435,-625.1218741,0.0002288,2]
[367222638,1750705842451,-514.4881259,0.0002288,2]
[367222640,1750705842461,-179.28191889,0.0002288,2]
[367222642,1750705842471,-490.82795367,0.0002288,2]
[367222644,1750705842481,-518.21,0.0002288,2]
[367222646,1750705842491,-840.22,0.0002288,2]
[367222648,1750705842501,-490.0,0.0002288,2]
[367222650,1750705842511,-490.0,0.0002288,2]
[367222652,1750705842520,-1173.73,0.0002288,2]
[367222654,1750705842530,-490.0,0.0002288,2]
[367222656,1750705842539,-490.0,0.0002288,2]
[367222658,1750705842548,-490.0,0.0002288,2]
[367222660,1750705842559,-490.0,0.0002288,2]
[367222662,1750705842570,-490.0,0.0002288,2]
[367222664,1750705842579,-501.92,0.0002288,2]
[367222666,1750705842590,-490.0,0.0002288,2]
[367222668,1750705842599,-1598.84,0.0002288,2]
[367222670,1750705842609,-490.0,0.0002288,2]
[367222672,1750705842619,-490.0,0.0002288,2]
[367222674,1750705842629,-490.0,0.0002288,2]
[367222676,1750705842638,-670.3,0.0002288,2]
[367222678,1750705842648,-495.23,0.0002288,2]
[367222680,1750705842658,-961.61,0.0002288,2]
[367222682,1750705842667,-490.0,0.0002288,2]
[367222684,1750705842676,-645.94,0.0002288,2]
[367222686,1750705842685,-490.0,0.0002288,2]
[367222688,1750705842694,-490.0,0.0002288,2]
[367222690,1750705842704,-490.0,0.0002288,2]
[367222692,1750705842714,-1955.84,0.0002288,2]
[367222693,1750705842724,-602.31,0.0002288,2]
[367222695,1750705842734,-490.0,0.0002288,2]
[367222697,1750705842743,-342.91811501,0.0002288,2]
[367222699,1750705842753,-1230.64,0.0002288,2]
[367222701,1750705842762,-3089.73,0.0002288,2]
[367222703,1750705842772,-490.0,0.0002288,2]
[367222705,1750705842781,-2688.47,0.0002288,2]
[367222707,1750705842792,-490.0,0.0002288,2]
[367222709,1750705842802,-1039.51,0.0002288,2]
[367222711,1750705842811,-490.0,0.0002288,2]
[367222713,1750705842821,-6567.88,0.0002288,2]
[367222715,1750705842830,-818.27,0.0002288,2]
[367222717,1750705842840,-490.0,0.0002288,2]
[367222719,1750705842850,-656.27,0.0002288,2]
[367222721,1750705842860,-641.83,0.0002288,2]
[367222724,1750705842871,-1363.71,0.0002288,2]
[367222725,1750705842881,-3596.73,0.0002288,2]
[367222727,1750705842891,-752.25,0.0002288,2]
[367222729,1750705842901,-805.07,0.0002288,2]
[367222731,1750705842910,-1937.36,0.0002288,2]
[367222733,1750705842919,-1063.75,0.0002288,2]
[367222735,1750705842929,-841.54,0.0002288,2]
[367222737,1750705842940,-490.0,0.0002288,2]
[367222739,1750705842950,-1189.96,0.0002288,2]
[367222742,1750705842959,-1053.89,0.0002288,2]
[367222744,1750705842970,-1268.27,0.0002288,2]
[367222747,1750705842979,-493.33,0.0002288,2]
[367222749,1750705842989,-490.0,0.0002288,2]
[367222751,1750705842999,-4158.37,0.0002288,2]
[367222752,1750705843008,-2022.6,0.0002288,2]
[367222754,1750705843017,-490.0,0.0002288,2]
[367222756,1750705843027,-490.0,0.0002288,2]
[367222758,1750705843037,-748.82,0.0002288,2]
[367222760,1750705843046,-730.08388653,0.0002288,2]
[367222763,1750705843059,-5100.53611347,0.0002288,2]
[367222765,1750705843068,-2740.94,0.0002288,2]
[367222767,1750705843077,-776.83875653,0.0002288,2]
[367222849,1750705843867,-202.0,0.00020448,2]
[367222851,1750705843877,-181.4,0.00022878,2]
[367222862,1750705843973,-308.6,0.00022878,2]
[367222864,1750705843983,-490.0,0.00022879,2]
[367222866,1750705843992,-230.16497298,0.00022879,2]
[367222867,1750705844002,-5439.23124347,0.0002288,2]
[367222869,1750705844011,-934.68,0.0002288,2]
[367222872,1750705844021,-1833.49,0.0002288,2]
[367222874,1750705844031,-1377.69,0.0002288,2]
[367222876,1750705844041,-2834.72,0.0002288,2]
[367222877,1750705844051,-490.0,0.0002288,2]
[367222879,1750705844060,-1183.77,0.0002288,2]
[367222881,1750705844069,-1441.62,0.0002288,2]
[367222883,1750705844079,-1264.04,0.0002288,2]
[367222885,1750705844088,-942.07,0.0002288,2]
[367222887,1750705844098,-1198.61,0.0002288,2]
[367222889,1750705844107,-19387.63,0.0002288,2]
[367222891,1750705844117,-1438.81,0.0002288,2]
[367222893,1750705844126,-490.0,0.0002288,2]
[367222895,1750705844135,-490.0,0.0002288,2]
[367222897,1750705844144,-1263.28,0.0002288,2]
[367222899,1750705844154,-1011.38,0.0002288,2]
[367222901,1750705844163,-1184.3,0.0002288,2]
[367222903,1750705844172,-1438.03,0.0002288,2]
[367222905,1750705844181,-573.44,0.0002288,2]
[367222907,1750705844190,-3011.62,0.0002288,2]
[367222909,1750705844200,-490.0,0.0002288,2]
[367222911,1750705844209,-1779.69,0.0002288,2]
[367222913,1750705844219,-1169.27,0.0002288,2]
[367222915,1750705844228,-598.57,0.0002288,2]
[367222917,1750705844238,-973.44,0.0002288,2]
[367222919,1750705844247,-2977.11,0.0002288,2]
[367222921,1750705844256,-490.0,0.0002288,2]
[367222923,1750705844266,-1081.63,0.0002288,2]
[367222925,1750705844275,-1217.14,0.0002288,2]
[367222927,1750705844284,-1091.0,0.0002288,2]
[367222929,1750705844294,-1339.99,0.0002288,2]
[367222930,1750705844303,-3630.93,0.0002288,2]
[367222932,1750705844313,-944.33,0.0002288,2]
[367222934,1750705844322,-868.3,0.0002288,2]
[367222936,1750705844331,-1969.6,0.0002288,2]
[367222938,1750705844343,-490.0,0.0002288,2]
[367222940,1750705844352,-135051.82378355,0.0002288,2]
[367223116,1750705846333,-514.46301292,0.00022878,2]
[367223118,1750705846343,-1228.12198707,0.00022879,2]
[367223122,1750705846372,-615.84801293,0.00022879,2]
[367223124,1750705846382,-801.15198707,0.00022879,2]
[367223166,1750705846786,151.0,0.00019879,2]
[367224056,1750706187259,250.0,0.00015,2]
[367224062,1750706458939,160.14,0.00024922,120]
[367224069,1750706725285,182.6,0.00013699,2]
[367224070,1750706730492,439.21357414,0.000199,2]
[367224072,1750706798268,172.49,0.00019178,2]
[367224073,1750706829298,23235.16642586,0.00016435,2]
[367224074,1750706829323,55617.1695776,0.00016435,2]
[367224100,1750707036871,-204.0,0.0001949,2]
[367224101,1750707036882,-264.0,0.00019999,2]
[367224102,1750707036891,-164.0,0.00019999,2]
[367224103,1750707036901,-1200.0,0.00019999,2]
[367224104,1750707036910,-30735.31753821,0.0002,4]
[367224105,1750707036920,-5474.18688525,0.0002,2]
[367224106,1750707036930,-182.6,0.00020187,2]
[367224107,1750707036939,-3878.0,0.000203,5]
[367224108,1750707036949,-1000.0,0.00020928,2]
[367224109,1750707036959,-166.02550187,0.00021015,2]
[367224110,1750707036968,-204.0,0.00021111,4]
[367224111,1750707036978,-521.22,0.00021185,2]
[367224112,1750707036988,-200.0,0.000212,2]
[367224113,1750707036998,-258.6188213,0.00021225,2]
[367224114,1750707037008,-1500.0,0.00021251,2]
[367224115,1750707037018,-264.82,0.00021258,2]
[367224116,1750707037027,-200.0,0.00021324,7]
[367224117,1750707037037,-250.18,0.00021325,2]
[367224118,1750707037047,-4632.56,0.00021338,2]
[367224119,1750707037057,-160.14,0.00021362,2]
[367224120,1750707037067,-151.0,0.00021564,2]
[367224121,1750707037077,-151.0,0.00021858,2]
[367224122,1750707037086,-1000.0,0.00021861,2]
[367224123,1750707037096,-246.85,0.00021863,2]
[367224124,1750707037105,-246.85,0.00021868,2]
[367224125,1750707037115,-300.0,0.0002187,2]
[367224126,1750707037125,-1123.77,0.00021871,2]
[367224127,1750707037134,-1000.0,0.00021871,2]
[367224128,1750707037144,-164.51,0.00021871,2]
[367224129,1750707037154,-246.85,0.00021874,2]
[367224130,1750707037163,-246.85,0.0002188,2]
[367224131,1750707037173,-1680.0,0.00021881,2]
[367224132,1750707037182,-246.85,0.00021886,2]
[367224133,1750707037192,-246.85,0.00021891,2]
[367224138,1750707037275,-246.85,0.00021897,2]
[367224140,1750707037285,-246.85,0.00021903,2]
[367224142,1750707037294,-246.85,0.00021909,2]
[367224144,1750707037303,-258.6188213,0.00021913,2]
[367224146,1750707037312,-246.85,0.00021914,2]
[367224148,1750707037321,-246.85,0.0002192,2]
[367224150,1750707037330,-246.85,0.00021926,2]
[367224152,1750707037339,-246.85,0.00021932,2]
[367224154,1750707037348,-246.85,0.00021937,2]
[367224156,1750707037357,-246.85,0.00021943,2]
[367224158,1750707037366,-1000.0,0.00021948,2]
[367224160,1750707037375,-246.85,0.00021949,2]